bitfinex/quotes_SOLUSD_20250902
["timestamp","ask_amount","ask_price","bid_price","bid_amount"]
[1756824602411,37.36,204.4,204.39,34.87746551]
[1756824603044,37.36,204.4,204.39,26.67]
[1756824603248,37.36,204.4,204.39,34.06530394]
[1756824603548,37.36,204.4,204.39,8.06530394]
[1756824603737,42.25244045,204.4,204.39,8.06530394]
[1756824603941,37.36,204.4,204.39,8.06530394]
[1756824604121,39.96,204.4,204.39,8.06530394]
[1756824604532,0.06,204.4,204.39,8.06530394]
[1756824604744,39.96,204.4,204.39,8.06530394]
[1756824604952,0.06,204.4,204.39,34.87746551]
[1756824605550,0.2,204.42,204.39,34.87746551]
[1756824605551,0.2,204.42,204.41,39.59559401]
[1756824605724,0.06,204.48,204.47,16.13060788]
[1756824605933,39.96,204.48,204.47,0.81216157]
[1756824606139,0.06,204.48,204.46,0.14216157]
[1756824606328,0.06,204.48,204.47,8.06530394]
[1756824606524,40.0,204.48,204.47,8.06530394]
[1756824606749,40.71,204.48,204.4,0.81216157]
[1756824607061,40.71,204.48,204.45,8.06530394]
[1756824607353,40.71,204.48,204.47,8.06530394]
[1756824607354,0.06,204.48,204.47,8.06530394]
[1756824607543,40.69,204.48,204.4,26.81216157]
[1756824607726,45.58051007,204.48,204.43,8.06530394]
[1756824607929,0.06,204.48,204.45,8.06530394]
[1756824608150,0.06,204.48,204.44,0.67]
[1756824608151,0.06,204.48,204.47,8.06530394]
[1756824608558,39.98,204.48,204.47,8.73530394]
[1756824608865,0.06,204.48,204.47,8.73530394]
[1756824609035,39.96,204.48,204.47,8.87746551]
[1756824609438,39.96,204.48,204.47,8.06530394]
[1756824609954,39.96,204.48,204.45,0.14216157]
[1756824610153,39.96,204.48,204.46,0.71]
[1756824610358,39.96,204.48,204.47,8.06530394]
[1756824611470,0.06,204.48,204.47,8.91746551]
[1756824611766,39.88,204.5,204.49,39.59559401]
[1756824611946,39.88,204.5,204.49,22.79738266]
[1756824612551,39.88,204.5,204.49,8.91746551]
[1756824613777,39.88,204.5,204.49,34.06530394]
[1756824614463,39.88,204.5,204.49,26.0]
[1756824614667,40.6,204.5,204.46,8.06530394]
[1756824614848,8.06530394,204.47,204.37,0.03]
[1756824615041,8.06530394,204.43,204.37,8.09530394]
[1756824615246,39.88,204.42,204.37,0.03]
[1756824615483,26.72,204.47,204.4,8.06530394]
[1756824615658,39.9,204.46,204.43,8.06530394]
[1756824616045,40.62,204.46,204.42,8.06530394]
[1756824616251,0.72,204.45,204.4,8.06530394]
[1756824616451,0.72,204.44,204.4,8.06530394]
[1756824616646,0.72,204.49,204.43,8.06530394]
[1756824616873,39.88,204.48,204.45,8.06530394]
[1756824617248,0.72,204.47,204.43,8.06530394]
[1756824617448,0.72,204.46,204.42,8.06530394]
[1756824617653,39.88,204.48,204.42,8.06530394]
[1756824617654,4.89069301,204.47,204.42,8.06530394]
[1756824617869,5.61069301,204.47,204.42,8.06530394]
[1756824618167,5.61069301,204.47,204.43,8.06530394]
[1756824618569,8.06530394,204.45,204.37,0.03]
[1756824618758,8.06530394,204.45,204.39,8.06530394]
[1756824619163,8.06530394,204.44,204.37,0.03]
[1756824619375,39.88,204.43,204.39,8.06530394]
[1756824619691,0.72,204.5,204.42,12.1561599]
[1756824619894,0.34432314,204.51,204.43,12.1561599]
[1756824619895,52.7561599,204.49,204.43,12.1561599]
[1756824620071,12.1561599,204.46,204.39,26.0]
[1756824620381,12.1561599,204.44,204.39,26.0]
[1756824620582,39.88,204.43,204.4,12.1561599]
[1756824621066,12.8761599,204.46,204.4,12.1561599]
[1756824621288,39.88,204.45,204.41,12.1561599]
[1756824621445,40.6,204.45,204.41,12.1561599]
[1756824621652,39.88,204.45,204.41,12.1561599]
[1756824621877,39.88,204.44,204.39,0.14216157]
[1756824622072,17.76681649,204.48,204.43,12.1561599]
[1756824622409,5.61065659,204.48,204.43,12.1561599]
[1756824622575,40.6,204.47,204.42,12.1561599]
[1756824622767,40.6,204.47,204.39,0.85216157]
[1756824622768,12.8761599,204.46,204.4,12.1561599]
[1756824622969,52.0361599,204.47,204.42,12.1561599]
[1756824623196,39.88,204.46,204.42,12.1561599]
[1756824623389,12.1561599,204.48,204.42,12.1561599]
[1756824623595,39.88,204.47,204.43,12.1561599]
[1756824623897,12.1561599,204.45,204.38,26.0]
[1756824624106,12.1561599,204.42,204.37,0.03]
[1756824624402,52.0361599,204.41,204.37,0.03]
[1756824624706,52.7561599,204.41,204.37,0.03]
[1756824624874,12.8761599,204.4,204.37,0.03]
[1756824625276,0.72,204.39,204.37,0.03]
[1756824625511,12.1561599,204.4,204.37,0.03]
[1756824625796,39.88,204.39,204.37,0.03]
[1756824625982,39.88,204.39,204.37,12.1861599]
[1756824626294,39.88,204.39,204.37,0.03]
[1756824626501,45.49263746,204.39,204.37,0.03]
[1756824626673,0.72,204.38,204.37,0.03]
[1756824626998,12.8761599,204.38,204.37,0.03]
[1756824627173,13.59559401,204.37,204.34,0.03]
[1756824627375,12.1561599,204.35,204.34,0.03]
[1756824627571,52.0361599,204.35,204.34,0.03]
[1756824627797,52.7561599,204.35,204.34,0.03]
[1756824627992,57.64972486,204.35,204.34,0.03]
[1756824628798,17.76972486,204.35,204.34,0.03]
[1756824629090,57.64972486,204.35,204.34,0.03]
[1756824630297,71.52964201,204.35,204.34,0.03]
[1756824630499,71.67180358,204.35,204.34,1e-08]
[1756824631101,73.63465659,204.35,204.34,1e-08]
[1756824631483,33.75465659,204.35,204.34,1e-08]
[1756824631675,71.67180358,204.35,204.34,1e-08]
[1756824631878,18.63179952,204.33,204.32,1e-08]
[1756824632092,31.07228256,204.33,204.32,1e-08]
[1756824632291,25.75175391,204.27,204.26,0.03]
[1756824632491,13.87991715,204.27,204.26,0.03]
[1756824632703,66.77823862,204.27,204.26,0.03]
[1756824632892,78.93439852,204.27,204.26,1e-08]
[1756824633079,78.93439852,204.27,204.23,0.03]
[1756824633080,26.14216157,204.24,204.23,0.03]
[1756824633408,78.17832147,204.24,204.23,0.03]
[1756824633604,39.01832147,204.24,204.23,0.03]
[1756824634005,83.79452201,204.24,204.23,0.03]
[1756824634202,43.91452201,204.24,204.23,0.03]
[1756824634503,83.79452201,204.24,204.23,0.03]
[1756824634702,0.14216157,204.23,204.16,0.1]
[1756824634907,13.59559401,204.21,204.16,0.1]
[1756824635105,12.1561599,204.17,204.16,0.1]
[1756824635611,52.0361599,204.17,204.16,0.1]
[1756824636009,4.89698394,204.21,204.16,0.1]
[1756824636192,12.1561599,204.21,204.16,0.81]
[1756824636398,39.9,204.2,204.17,0.71]
[1756824636605,39.9,204.19,204.16,12.2561599]
[1756824636787,12.1561599,204.25,204.18,0.71]
[1756824636988,52.0561599,204.24,204.18,12.8661599]
[1756824637283,12.1561599,204.23,204.18,12.8661599]
[1756824637486,14.31559401,204.29,204.19,0.71]
[1756824637697,12.1561599,204.24,204.19,0.71]
[1756824637909,39.9,204.23,204.18,12.1561599]
[1756824638113,44.79651904,204.23,204.19,0.71]
[1756824638713,39.9,204.23,204.19,0.71]
[1756824638901,4.89637467,204.24,204.19,12.8661599]
[1756824639200,39.9,204.23,204.2,0.66]
[1756824639407,39.9,204.23,204.18,12.1561599]
[1756824639608,12.1561599,204.22,204.16,26.1]
[1756824639794,12.1561599,204.21,204.16,0.1]
[1756824639995,4.89739948,204.19,204.16,0.1]
[1756824640196,12.1561599,204.18,204.16,0.1]
[1756824640395,39.9,204.17,204.16,0.1]
[1756824640597,52.0561599,204.17,204.16,0.1]
[1756824641006,12.1561599,204.18,204.16,0.1]
[1756824641208,39.9,204.17,204.16,0.1]
[1756824641411,39.9,204.17,204.16,17.15422026]
[1756824641610,39.9,204.17,204.16,0.1]
[1756824641804,39.9,204.17,204.16,12.9161599]
[1756824642114,39.9,204.17,204.16,17.81427902]
[1756824642414,39.9,204.17,204.16,12.9161599]
[1756824642806,39.9,204.17,204.16,17.81427902]
[1756824642994,39.9,204.17,204.16,0.76]
[1756824643195,39.9,204.17,204.16,12.9161599]
[1756824643424,39.9,204.17,204.16,0.1]
[1756824643805,52.7361599,204.17,204.16,0.1]
[1756824644310,45.47787921,204.17,204.16,0.1]
[1756824644612,4.89752213,204.19,204.16,0.1]
[1756824644817,52.0561599,204.18,204.16,0.1]
[1756824644991,12.1561599,204.18,204.16,0.1]
[1756824645193,39.9,204.17,204.16,0.1]
[1756824647016,0.68,204.25,204.16,12.9161599]
[1756824647201,52.0561599,204.24,204.16,5.6580878]
[1756824647402,12.1561599,204.23,204.17,12.1561599]
[1756824647805,0.68,204.25,204.17,12.1561599]
[1756824648000,39.9,204.24,204.18,0.66]
[1756824648313,39.9,204.24,204.2,12.1561599]
[1756824648632,39.9,204.23,204.2,12.8161599]
[1756824648928,0.68,204.22,204.16,26.1]
[1756824649110,52.0561599,204.23,204.17,12.8161599]
[1756824649294,0.06,204.26,204.21,12.1561599]
[1756824649622,39.9,204.25,204.21,12.8161599]
[1756824649811,0.06,204.26,204.22,12.8161599]
[1756824650023,39.9,204.25,204.24,12.1561599]
[1756824650400,39.9,204.25,204.2,4.89708962]
[1756824650616,39.9,204.25,204.21,0.66]
[1756824650908,52.0561599,204.25,204.19,12.8161599]
[1756824651402,52.0561599,204.25,204.19,43.71348149]
[1756824651801,12.1561599,204.24,204.19,26.66]
[1756824652003,12.1561599,204.23,204.19,26.66]
[1756824652212,12.1561599,204.23,204.2,0.66]
[1756824652517,0.06,204.26,204.22,12.1561599]
[1756824652716,39.9,204.25,204.23,12.1561599]
[1756824652919,0.06,204.26,204.24,12.8161599]
[1756824653123,0.06,204.26,204.25,12.8161599]
[1756824653328,39.96,204.26,204.25,12.8161599]
[1756824653524,39.96,204.26,204.22,12.1561599]
[1756824653708,57.01191315,204.26,204.21,26.0]
[1756824654024,12.1561599,204.23,204.19,0.66]
[1756824654211,39.9,204.22,204.19,26.66]
[1756824654415,56.95300741,204.22,204.16,12.9161599]
[1756824654613,12.1561599,204.2,204.16,0.76]
[1756824654910,12.1561599,204.18,204.16,0.1]
[1756824655096,39.9,204.17,204.16,0.1]
[1756824655712,39.9,204.17,204.16,0.76]
[1756824656031,39.9,204.17,204.16,0.1]
[1756824656198,39.9,204.17,204.16,0.76]
[1756824656405,39.9,204.17,204.16,0.1]
[1756824656906,39.9,204.17,204.16,12.9161599]
[1756824657104,39.9,204.17,204.16,12.2561599]
[1756824657512,0.06,204.26,204.16,12.2561599]
[1756824657513,26.0,204.24,204.16,17.8142615]
[1756824657821,12.1561599,204.22,204.16,12.9161599]
[1756824658912,39.9,204.21,204.16,12.9161599]
[1756824659335,39.9,204.21,204.16,0.1]
[1756824659529,40.58,204.21,204.16,0.1]
[1756824659912,39.9,204.2,204.17,12.8161599]
[1756824660129,39.9,204.19,204.17,12.8161599]
[1756824660333,4.89548147,204.27,204.18,17.71359651]
[1756824660516,39.9,204.25,204.18,5.55743661]
[1756824660710,39.9,204.25,204.23,12.1561599]
[1756824660911,0.68,204.28,204.24,12.1561599]
[1756824661214,0.06,204.29,204.25,12.1561599]
[1756824661414,39.96,204.26,204.25,12.1561599]
[1756824661614,39.96,204.26,204.25,12.8161599]
[1756824661937,39.96,204.26,204.25,12.1561599]
[1756824662231,39.96,204.26,204.25,12.8161599]
[1756824662420,39.94,204.26,204.25,17.8542823]
[1756824662623,0.06,204.26,204.25,43.89035935]
[1756824663434,39.94,204.29,204.28,26.0]
[1756824663637,0.06,204.29,204.28,52.83823862]
[1756824664321,0.06,204.29,204.28,31.69740339]
[1756824664528,0.06,204.29,204.28,38.95832147]
[1756824664715,0.06,204.29,204.28,43.85356329]
[1756824665238,0.06,204.29,204.28,36.95832147]
[1756824665736,0.06,204.29,204.28,41.85356329]
[1756824666317,0.06,204.29,204.24,13.87991715]
[1756824666318,0.06,204.29,204.25,0.66]
[1756824666537,0.06,204.29,204.24,84.99600275]
[1756824666712,0.06,204.29,204.27,12.1561599]
[1756824666918,0.06,204.29,204.17,80.1]
[1756824667126,0.68,204.28,204.23,12.1561599]
[1756824667436,12.2161599,204.29,204.25,12.1561599]
[1756824667437,39.88,204.27,204.25,12.1561599]
[1756824667635,39.88,204.26,204.25,12.1561599]
[1756824667843,39.94,204.26,204.24,12.1561599]
[1756824668555,39.94,204.26,204.21,4.89672733]
[1756824668839,39.94,204.26,204.24,12.1561599]
[1756824669223,39.94,204.26,204.19,26.17216157]
[1756824669224,0.7,204.25,204.19,26.17216157]
[1756824669431,12.8561599,204.25,204.19,0.03]
[1756824669640,39.94,204.26,204.22,12.1561599]
[1756824669937,45.53573085,204.26,204.22,12.1561599]
[1756824670238,40.64,204.26,204.23,12.1561599]
[1756824670429,45.53582148,204.26,204.22,12.1561599]
[1756824670632,0.7,204.25,204.2,26.0]
[1756824670813,0.7,204.25,204.22,12.1561599]
[1756824671014,0.7,204.24,204.19,12.1861599]
[1756824671220,45.53582148,204.26,204.21,12.1561599]
[1756824671524,39.86,204.25,204.22,12.1561599]
[1756824672143,40.56,204.25,204.22,12.1561599]
[1756824672444,45.45611387,204.25,204.22,12.1561599]
[1756824672818,39.86,204.24,204.23,12.1561599]
[1756824673452,39.86,204.24,204.19,80.81]
[1756824673622,39.86,204.24,204.22,12.1561599]
[1756824673935,39.86,204.24,204.23,12.1561599]
[1756824674249,39.86,204.24,204.22,12.1561599]
[1756824674451,39.86,204.24,204.21,12.1561599]
[1756824674742,44.75623354,204.24,204.2,12.1561599]
[1756824674918,39.86,204.23,204.21,0.68]
[1756824675119,39.86,204.23,204.21,92.2561599]
[1756824675318,0.7,204.22,204.21,80.1]
[1756824675536,0.7,204.22,204.19,0.03]
[1756824675938,52.0161599,204.23,204.19,0.03]
[1756824676254,12.1561599,204.2,204.19,0.03]
[1756824676461,30.64891355,204.2,204.19,0.03]
[1756824676622,59.33707679,204.2,204.19,0.03]
[1756824676817,71.49323669,204.2,204.19,0.03]
[1756824677022,5.59715964,204.2,204.19,0.03]
[1756824677322,45.45715964,204.2,204.19,0.03]
[1756824677942,57.61331954,204.2,204.19,0.03]
[1756824678730,17.75331954,204.2,204.19,0.03]
[1756824679048,57.61331954,204.2,204.19,0.03]
[1756824679547,53.53353239,204.2,204.19,0.03]
[1756824680031,67.41344954,204.2,204.19,0.03]
[1756824680543,12.97333985,204.21,204.19,0.03]
[1756824680755,39.86,204.2,204.19,0.03]
[1756824680955,40.56,204.2,204.19,0.03]
[1756824681125,48.63637275,204.2,204.19,0.03]
[1756824681638,39.86,204.2,204.19,0.03]
[1756824682645,12.97327962,204.22,204.19,0.03]
[1756824682826,39.86,204.21,204.19,0.03]
[1756824683021,0.7,204.21,204.19,0.03]
[1756824683239,39.86,204.2,204.19,0.03]
[1756824683944,4.89649649,204.23,204.19,8.78637275]
[1756824684147,39.86,204.22,204.21,8.07637275]
[1756824684446,39.86,204.22,204.2,8.07637275]
[1756824684643,39.86,204.22,204.19,0.03]
[1756824684644,4.89691983,204.21,204.19,0.03]
[1756824684844,8.07637275,204.2,204.19,0.03]
[1756824685153,8.77637275,204.2,204.19,0.03]
[1756824685649,0.7,204.2,204.19,0.03]
[1756824685843,8.07637275,204.2,204.19,0.03]
[1756824686039,40.56,204.2,204.19,0.03]
[1756824686348,48.63637275,204.2,204.19,0.03]
[1756824686729,53.53353239,204.2,204.19,0.03]
[1756824687252,67.41344954,204.2,204.19,0.03]
[1756824687753,27.69561111,204.2,204.19,0.03]
[1756824688047,79.79851022,204.2,204.16,0.1]
[1756824688261,48.09845147,204.17,204.16,0.1]
[1756824688452,87.95845147,204.17,204.16,0.1]
[1756824688632,80.58207872,204.17,204.16,0.1]
[1756824688832,45.61995793,204.17,204.16,0.1]
[1756824689032,93.41416911,204.17,204.16,0.1]
[1756824689227,4.89787921,204.17,204.16,0.1]
[1756824689647,44.75787921,204.17,204.16,0.1]
[1756824690756,4.89787921,204.17,204.16,0.1]
[1756824691257,44.75787921,204.17,204.16,0.1]
[1756824692657,67.41416911,204.17,204.16,0.1]
[1756824694754,44.75787921,204.17,204.16,0.1]
[1756824694946,8.07637275,204.19,204.16,0.1]
[1756824695147,12.97353239,204.2,204.16,0.78]
[1756824695353,12.97282919,204.23,204.17,8.75637275]
[1756824695556,12.97282919,204.23,204.18,8.07637275]
[1756824695557,39.86,204.22,204.18,8.07637275]
[1756824695856,0.06,204.26,204.21,34.07637275]
[1756824696057,0.06,204.26,204.25,8.07637275]
[1756824696258,1.64,204.26,204.22,0.68]
[1756824696444,1.64,204.26,204.16,4.99807299]
[1756824696757,6.53578055,204.26,204.2,0.68]
[1756824696963,1.64,204.26,204.21,8.07637275]
[1756824697159,1.64,204.26,204.22,8.75637275]
[1756824697467,6.53574527,204.26,204.23,0.68]
[1756824697664,39.86,204.25,204.24,0.68]
[1756824697970,39.86,204.25,204.24,8.75637275]
[1756824698266,0.06,204.26,204.25,0.14216157]
[1756824698465,0.06,204.28,204.27,34.07637275]
[1756824698768,21.02,204.28,204.27,34.75637275]
[1756824698968,21.02,204.28,204.27,39.65185422]
[1756824699460,21.02,204.28,204.27,34.75637275]
[1756824699666,21.02,204.28,204.25,0.66]
[1756824699868,21.02,204.28,204.26,0.66]
[1756824700063,25.91531304,204.28,204.25,0.66]
[1756824700260,25.91531304,204.28,204.24,8.07637275]
[1756824700651,25.91531304,204.28,204.23,8.07637275]
[1756824700858,25.91531304,204.28,204.23,8.73637275]
[1756824701158,0.65,204.27,204.22,8.07637275]
[1756824701345,8.72637275,204.27,204.21,8.07637275]
[1756824701546,0.65,204.27,204.19,0.66]
[1756824701749,8.07637275,204.24,204.17,0.66]
[1756824701953,47.91637275,204.23,204.17,8.73637275]
[1756824702363,39.84,204.23,204.18,8.07637275]
[1756824702572,39.84,204.23,204.19,8.73637275]
[1756824703054,8.07637275,204.26,204.2,8.73637275]
[1756824703377,39.84,204.25,204.2,8.73637275]
[1756824704873,47.91637275,204.25,204.19,8.07637275]
[1756824705171,47.91637275,204.25,204.18,26.0]
[1756824705172,12.97281303,204.23,204.18,26.0]
[1756824705671,8.07637275,204.21,204.16,0.1]
[1756824705853,47.91637275,204.2,204.16,80.2]
[1756824706056,4.89644028,204.23,204.18,8.07637275]
[1756824706368,48.56637275,204.22,204.17,8.07637275]
[1756824706670,48.56637275,204.22,204.16,80.2]
[1756824706671,8.72637275,204.21,204.16,80.2]
[1756824707074,8.07637275,204.21,204.16,80.2]
[1756824707255,8.07637275,204.21,204.16,0.1]
[1756824707256,8.07637275,204.18,204.16,0.1]
[1756824707448,47.91637275,204.17,204.16,0.1]
[1756824707649,48.56637275,204.17,204.16,0.1]
[1756824707870,39.84,204.17,204.16,0.1]
[1756824708086,48.56637275,204.17,204.16,0.1]
[1756824708375,62.4462899,204.17,204.16,0.1]
[1756824708751,62.58845147,204.17,204.16,0.1]
[1756824709552,67.48633068,204.17,204.16,0.1]
[1756824709851,13.62425196,204.17,204.16,0.1]
[1756824710054,53.46425196,204.17,204.16,0.1]
[1756824711783,13.62425196,204.17,204.16,0.1]
[1756824711960,4.89787921,204.17,204.16,0.1]
[1756824712165,52.81425196,204.17,204.16,0.1]
[1756824712354,53.46425196,204.17,204.16,0.1]
[1756824712556,52.81425196,204.17,204.16,0.1]
[1756824712856,44.73787921,204.17,204.16,0.1]
[1756824714286,52.81425196,204.17,204.16,0.1]
[1756824714576,53.46425196,204.17,204.16,0.1]
[1756824714883,52.81425196,204.17,204.16,0.1]
[1756824715376,53.46425196,204.17,204.16,0.1]
[1756824716763,52.81425196,204.17,204.16,0.1]
[1756824717561,66.69416911,204.17,204.16,0.1]
[1756824717880,67.34416911,204.17,204.16,0.1]
[1756824718251,13.2585751,204.17,204.16,0.1]
[1756824718481,44.73787921,204.17,204.16,0.1]
[1756824718679,67.34416911,204.17,204.16,0.1]
[1756824719763,13.87991715,204.16,204.07,8.10637275]
[1756824719964,4.89907897,204.12,204.07,8.10637275]
[1756824720164,39.82,204.11,204.08,8.07637275]
[1756824720364,4.89907897,204.12,204.08,8.07637275]
[1756824720365,4.89886885,204.13,204.08,8.07637275]
[1756824720568,4.89787921,204.17,204.11,8.07637275]
[1756824720765,47.89637275,204.16,204.07,0.03]
[1756824720978,47.89637275,204.16,204.1,8.07637275]
[1756824721285,8.07637275,204.15,204.07,0.03]
[1756824721490,39.82,204.14,204.09,8.07637275]
[1756824721686,39.82,204.14,204.1,8.07637275]
[1756824721888,30.89768662,204.18,204.13,8.07637275]
[1756824722093,32.36,204.24,204.17,8.07637275]
[1756824722393,39.82,204.23,204.16,0.66]
[1756824722591,53.44281303,204.23,204.18,8.07637275]
[1756824722890,53.44281303,204.23,204.16,0.66]
[1756824722891,32.36,204.24,204.2,8.07637275]
[1756824723064,39.82,204.23,204.18,0.66]
[1756824723264,39.82,204.23,204.2,8.07637275]
[1756824723462,39.82,204.23,204.2,8.73637275]
[1756824723656,39.82,204.23,204.15,26.0]
[1756824723862,32.36,204.24,204.22,8.07637275]
[1756824724081,32.36,204.24,204.23,8.73637275]
[1756824724281,0.06,204.25,204.23,8.73637275]
[1756824724476,0.06,204.25,204.24,42.95490707]
[1756824724669,19.92,204.25,204.24,42.95490707]
[1756824725273,19.92,204.25,204.24,0.80216157]
[1756824725479,19.92,204.25,204.24,0.66]
[1756824725686,19.92,204.25,204.24,8.73637275]
[1756824726066,24.81596083,204.25,204.22,8.07637275]
[1756824726388,24.81596083,204.25,204.2,8.73637275]
[1756824726685,24.81596083,204.25,204.21,0.66]
[1756824726891,8.72637275,204.24,204.18,8.07637275]
[1756824727089,8.07637275,204.23,204.17,8.73637275]
[1756824727273,8.07637275,204.22,204.17,0.66]
[1756824727464,0.06,204.25,204.21,8.07637275]
[1756824727668,39.82,204.24,204.23,8.07637275]
[1756824727870,39.82,204.24,204.21,8.07637275]
[1756824728094,52.79266672,204.24,204.17,0.66]
[1756824728385,52.79266672,204.24,204.16,0.03]
[1756824728386,8.07637275,204.19,204.16,0.03]
[1756824728685,39.82,204.18,204.16,0.03]
[1756824729176,39.82,204.17,204.16,0.03]
[1756824729971,0.7,204.21,204.16,0.03]
[1756824730180,34.07637275,204.22,204.16,8.78637275]
[1756824730380,47.89637275,204.21,204.16,0.03]
[1756824730581,39.82,204.21,204.16,0.03]
[1756824730779,48.59637275,204.21,204.16,0.03]
[1756824730985,0.7,204.2,204.16,0.03]
[1756824731183,8.77637275,204.2,204.16,0.03]
[1756824731377,8.07637275,204.2,204.16,0.03]
[1756824731575,8.77637275,204.2,204.16,0.03]
[1756824731991,39.82,204.21,204.16,0.03]
[1756824732188,39.82,204.21,204.16,8.10637275]
[1756824732400,8.07637275,204.24,204.18,8.07637275]
[1756824732705,8.07637275,204.21,204.16,0.03]
[1756824733000,40.52,204.23,204.16,0.03]
[1756824733183,8.77637275,204.2,204.16,0.03]
[1756824733384,39.82,204.19,204.16,0.03]
[1756824733580,17.13670191,204.24,204.17,8.75637275]
[1756824733788,4.89620054,204.24,204.2,8.07637275]
[1756824733977,39.82,204.23,204.17,0.68]
[1756824734177,39.82,204.23,204.16,26.03]
[1756824734178,8.07637275,204.21,204.16,0.03]
[1756824734429,8.07637275,204.17,204.16,0.03]
[1756824734583,26.0,204.14,204.13,0.03]
[1756824734788,47.9562899,204.14,204.13,0.03]
[1756824734986,26.98432314,204.14,204.13,0.03]
[1756824735296,34.77637275,204.14,204.13,0.03]
[1756824735620,74.57637275,204.14,204.13,0.03]
[1756824735780,0.28432314,204.12,204.11,0.03]
[1756824735985,52.85536887,204.12,204.11,0.03]
[1756824736212,13.59559401,204.11,204.07,0.03]
[1756824736419,8.07637275,204.09,204.07,0.03]
[1756824736587,8.07637275,204.08,204.07,0.03]
[1756824736790,8.77637275,204.08,204.07,0.03]
[1756824737202,31.18340211,204.12,204.07,0.03]
[1756824737505,0.7,204.15,204.1,8.07637275]
[1756824737706,39.82,204.14,204.11,8.07637275]
[1756824737909,13.73775558,204.17,204.07,0.03]
[1756824737910,4.89787921,204.17,204.07,0.03]
[1756824738116,39.82,204.16,204.15,8.07637275]
[1756824738297,40.52,204.16,204.08,26.68]
[1756824738603,48.59637275,204.16,204.08,0.68]
[1756824738810,48.59637275,204.16,204.1,8.07637275]
[1756824739004,8.07637275,204.15,204.09,8.07637275]
[1756824739181,40.52,204.16,204.1,8.07637275]
[1756824739386,8.07637275,204.15,204.09,8.07637275]
[1756824739596,8.07637275,204.11,204.07,0.03]
[1756824739796,39.82,204.1,204.07,0.03]
[1756824740109,0.28432314,204.15,204.09,8.07637275]
[1756824740299,39.82,204.14,204.08,0.68]
[1756824740487,47.89637275,204.14,204.07,0.03]
[1756824740693,0.7,204.13,204.08,8.07637275]
[1756824741093,0.7,204.13,204.07,0.03]
[1756824741308,48.59637275,204.14,204.08,8.07637275]
[1756824741612,13.87991715,204.13,204.07,12.22386218]
[1756824741908,12.19386218,204.11,204.07,0.03]
[1756824742112,4.8997991,204.09,204.07,0.03]
[1756824742313,12.19386218,204.08,204.07,0.03]
[1756824742796,39.82,204.08,204.07,0.03]
[1756824743000,52.71386218,204.08,204.07,0.03]
[1756824743214,52.01386218,204.08,204.07,0.03]
[1756824743413,4.89907897,204.12,204.07,12.90386218]
[1756824743599,39.82,204.11,204.08,12.19386218]
[1756824743909,5.59888431,204.13,204.07,0.03]
[1756824744101,4.89931899,204.11,204.08,12.19386218]
[1756824744296,5.59931899,204.11,204.07,0.03]
[1756824744596,4.89931899,204.11,204.07,12.22386218]
[1756824744910,0.06,204.16,204.1,12.19386218]
[1756824745112,0.06,204.16,204.12,12.19386218]
[1756824745297,39.82,204.15,204.14,12.19386218]
[1756824745496,39.82,204.15,204.13,12.19386218]
[1756824745704,0.06,204.16,204.14,12.19386218]
[1756824745909,39.82,204.14,204.13,0.68]
[1756824746295,39.82,204.14,204.1,26.0]
[1756824746498,4.89839053,204.15,204.11,0.68]
[1756824746695,0.06,204.16,204.12,0.68]
[1756824746696,39.82,204.14,204.12,0.68]